[Event "*** Titled Tuesday Blitz"]
[Site "Chess.com"]
[Date "2021.03.30"]
[Round "4"]
[White "c_r_e_e_p_e_r"]
[Black "mamonika"]
[Result "1/2-1/2"]
[WhiteElo "2374"]
[BlackElo "2055"]
[TimeControl "180+1"]
[EndTime "10:41:04 PDT"]
[Termination "Game drawn by stalemate"]

1. d4 {[%clk 0:03:00.9]} 1... Nf6 {[%clk 0:02:53.4]} 2. c4 {[%clk 0:03:01.2]}
2... e6 {[%clk 0:02:51.3]} 3. Nc3 {[%clk 0:03:01.1]} 3... d5 {[%clk 0:02:49.6]}
4. Nf3 {[%clk 0:03:00.3]} 4... c6 {[%clk 0:02:42.1]} 5. Bg5 {[%clk 0:02:59.7]}
5... Be7 {[%clk 0:02:39.3]} 6. e3 {[%clk 0:02:59.8]} 6... O-O {[%clk 0:02:38]}
7. Qc2 {[%clk 0:03:00.2]} 7... dxc4 {[%clk 0:02:19.1]} 8. Bxc4 {[%clk
0:02:59.9]} 8... b5 {[%clk 0:02:19.8]} 9. Bd3 {[%clk 0:02:57.4]} 9... Nbd7
{[%clk 0:02:15.3]} 10. O-O {[%clk 0:02:55.9]} 10... Bb7 {[%clk 0:02:08]} 11. a3
{[%clk 0:02:55]} 11... h6 {[%clk 0:02:05.1]} 12. Bf4 {[%clk 0:02:52.6]} 12... c5
{[%clk 0:02:05.3]} 13. Nxb5 {[%clk 0:02:41.3]} 13... cxd4 {[%clk 0:01:58.1]} 14.
Nbxd4 {[%clk 0:02:28.3]} 14... Rc8 {[%clk 0:01:55.1]} 15. Qe2 {[%clk 0:02:26]}
15... Qb6 {[%clk 0:01:44.1]} 16. Ne5 {[%clk 0:02:07.7]} 16... Nc5 {[%clk
0:01:37.2]} 17. Bc4 {[%clk 0:01:57]} 17... Nfe4 {[%clk 0:01:25.6]} 18. b4 {[%clk
0:01:52.9]} 18... Na4 {[%clk 0:01:19.8]} 19. f3 {[%clk 0:01:37.2]} 19... Nec3
{[%clk 0:01:12.8]} 20. Qf2 {[%clk 0:01:36]} 20... Rfd8 {[%clk 0:00:51.3]} 21.
Kh1 {[%clk 0:01:19.4]} 21... Bf6 {[%clk 0:00:47.1]} 22. Qg3 {[%clk 0:01:17.6]}
22... Kf8 {[%clk 0:00:18.6]} 23. Bb3 {[%clk 0:00:45.5]} 23... Bd5 {[%clk
0:00:18.4]} 24. Bc2 {[%clk 0:00:37]} 24... Bc4 {[%clk 0:00:11.7]} 25. Nxc4
{[%clk 0:00:33.7]} 25... Rxc4 {[%clk 0:00:11.2]} 26. Bb3 {[%clk 0:00:30.1]}
26... Rcc8 {[%clk 0:00:10.3]} 27. Be5 {[%clk 0:00:20.1]} 27... Bxe5 {[%clk
0:00:10]} 28. Qxe5 {[%clk 0:00:21]} 28... Nb2 {[%clk 0:00:10.3]} 29. Qf4 {[%clk
0:00:15.6]} 29... Nd3 {[%clk 0:00:09.7]} 30. Qh4 {[%clk 0:00:12.4]} 30... Nd5
{[%clk 0:00:09.5]} 31. Rad1 {[%clk 0:00:09.3]} 31... Ne5 {[%clk 0:00:08.3]} 32.
Qe4 {[%clk 0:00:08.3]} 32... Ng6 {[%clk 0:00:07.9]} 33. h4 {[%clk 0:00:07.5]}
33... Nf6 {[%clk 0:00:07.8]} 34. Nxe6+ {[%clk 0:00:04.4]} 34... fxe6 {[%clk
0:00:06.7]} 35. Qxg6 {[%clk 0:00:04.4]} 35... Rxd1 {[%clk 0:00:05.1]} 36. Rxd1
{[%clk 0:00:04.5]} 36... Qxe3 {[%clk 0:00:04.6]} 37. Bc2 {[%clk 0:00:04.1]}
37... Qe2 {[%clk 0:00:03.7]} 38. Qd3 {[%clk 0:00:04.2]} 38... Qxd3 {[%clk
0:00:03.5]} 39. Bxd3 {[%clk 0:00:03.6]} 39... Rd8 {[%clk 0:00:03.6]} 40. Be2
{[%clk 0:00:02.2]} 40... Ke7 {[%clk 0:00:04.1]} 41. Rc1 {[%clk 0:00:01.9]} 41...
Rd7 {[%clk 0:00:03.8]} 42. Bb5 {[%clk 0:00:01.5]} 42... Rb7 {[%clk 0:00:03.7]}
43. a4 {[%clk 0:00:01.7]} 43... Nd5 {[%clk 0:00:03.5]} 44. Bc6 {[%clk
0:00:01.5]} 44... Rxb4 {[%clk 0:00:03.7]} 45. Bxd5 {[%clk 0:00:02.4]} 45... exd5
{[%clk 0:00:04.4]} 46. Rc7+ {[%clk 0:00:02.9]} 46... Kd6 {[%clk 0:00:05]} 47.
Rxa7 {[%clk 0:00:03.8]} 47... g5 {[%clk 0:00:04.3]} 48. hxg5 {[%clk 0:00:03.8]}
48... hxg5 {[%clk 0:00:05.2]} 49. a5 {[%clk 0:00:03.5]} 49... Ra4 {[%clk
0:00:05.3]} 50. Ra8 {[%clk 0:00:03.8]} 50... Kc6 {[%clk 0:00:05.4]} 51. Kh2
{[%clk 0:00:04]} 51... d4 {[%clk 0:00:05.9]} 52. Rd8 {[%clk 0:00:03.2]} 52...
Rxa5 {[%clk 0:00:05.2]} 53. Rxd4 {[%clk 0:00:03.2]} 53... Rb5 {[%clk 0:00:04.5]}
54. Rg4 {[%clk 0:00:03.4]} 54... Kd6 {[%clk 0:00:04.5]} 55. Kg3 {[%clk
0:00:03.8]} 55... Ke6 {[%clk 0:00:04.5]} 56. Re4+ {[%clk 0:00:04.3]} 56... Kf6
{[%clk 0:00:04.7]} 57. Rd4 {[%clk 0:00:04.3]} 57... Ra5 {[%clk 0:00:05]} 58. Rd8
{[%clk 0:00:04.5]} 58... Kf5 {[%clk 0:00:04.9]} 59. Rf8+ {[%clk 0:00:04.6]}
59... Kg6 {[%clk 0:00:05.1]} 60. Kg4 {[%clk 0:00:04.7]} 60... Ra4+ {[%clk
0:00:05]} 61. Kg3 {[%clk 0:00:04.5]} 61... Rb4 {[%clk 0:00:05.4]} 62. Kh3 {[%clk
0:00:04.7]} 62... Ra4 {[%clk 0:00:05]} 63. g3 {[%clk 0:00:04.8]} 63... Rb4
{[%clk 0:00:05.3]} 64. Rg8+ {[%clk 0:00:04.3]} 64... Kf5 {[%clk 0:00:04.6]} 65.
Re8 {[%clk 0:00:04.6]} 65... Kg6 {[%clk 0:00:04.8]} 66. Re4 {[%clk 0:00:04.2]}
66... Rb3 {[%clk 0:00:05.3]} 67. Kg4 {[%clk 0:00:04.3]} 67... Ra3 {[%clk
0:00:05.7]} 68. Re6+ {[%clk 0:00:04.4]} 68... Kf7 {[%clk 0:00:06.1]} 69. Re5
{[%clk 0:00:04.2]} 69... Kf6 {[%clk 0:00:05.5]} 70. Rf5+ {[%clk 0:00:03.9]}
70... Ke6 {[%clk 0:00:04.2]} 71. Kxg5 {[%clk 0:00:04.2]} 71... Ra4 {[%clk
0:00:02.8]} 72. g4 {[%clk 0:00:03.9]} 72... Ke7 {[%clk 0:00:02.4]} 73. f4 {[%clk
0:00:04.2]} 73... Ke6 {[%clk 0:00:02]} 74. Re5+ {[%clk 0:00:04.6]} 74... Kf7
{[%clk 0:00:02.1]} 75. Kf5 {[%clk 0:00:05.2]} 75... Kg7 {[%clk 0:00:02.5]} 76.
g5 {[%clk 0:00:05.6]} 76... Kf8 {[%clk 0:00:02.8]} 77. Kf6 {[%clk 0:00:05.2]}
77... Rxf4+ {[%clk 0:00:02.1]} 78. Rf5 {[%clk 0:00:04]} 78... Rxf5+ {[%clk
0:00:02.3]} 79. Kxf5 {[%clk 0:00:04.1]} 79... Kf7 {[%clk 0:00:03.2]} 80. g6+
{[%clk 0:00:04.2]} 80... Kg7 {[%clk 0:00:03.7]} 81. Kg5 {[%clk 0:00:05.1]} 81...
Kg8 {[%clk 0:00:04]} 82. Kf6 {[%clk 0:00:05.3]} 82... Kf8 {[%clk 0:00:04.3]} 83.
g7+ {[%clk 0:00:06]} 83... Kg8 {[%clk 0:00:04.7]} 84. Kg6 {[%clk 0:00:06.9]}
1/2-1/2

[Event "*** Titled Tuesday Blitz"]
[Site "Chess.com"]
[Date "2021.03.30"]
[Round "4"]
[White "Cptn2"]
[Black "ChessQueen"]
[Result "0-1"]
[WhiteElo "2498"]
[BlackElo "2711"]
[TimeControl "180+1"]
[EndTime "10:41:08 PDT"]
[Termination "ChessQueen won by resignation"]

1. e4 {[%clk 0:02:59]} 1... c6 {[%clk 0:02:59.4]} 2. Nf3 {[%clk 0:02:58.6]} 2...
d5 {[%clk 0:02:59.4]} 3. Nc3 {[%clk 0:02:59.5]} 3... dxe4 {[%clk 0:02:59.6]} 4.
Nxe4 {[%clk 0:02:59.4]} 4... Nf6 {[%clk 0:03:00.3]} 5. Qe2 {[%clk 0:03:00]} 5...
Nxe4 {[%clk 0:02:59.8]} 6. Qxe4 {[%clk 0:03:00.9]} 6... Nd7 {[%clk 0:03:00]} 7.
Bc4 {[%clk 0:03:00]} 7... Nf6 {[%clk 0:03:00.2]} 8. Ne5 {[%clk 0:03:00.6]} 8...
e6 {[%clk 0:03:00]} 9. Qe2 {[%clk 0:03:01.1]} 9... b5 {[%clk 0:02:58.2]} 10. Bb3
{[%clk 0:02:23]} 10... Qc7 {[%clk 0:02:52]} 11. O-O {[%clk 0:02:19.3]} 11... Bd6
{[%clk 0:02:48.1]} 12. d4 {[%clk 0:02:18.8]} 12... O-O {[%clk 0:02:47.2]} 13. a4
{[%clk 0:02:09.4]} 13... c5 {[%clk 0:02:40.9]} 14. axb5 {[%clk 0:01:52.5]} 14...
cxd4 {[%clk 0:02:35.6]} 15. Nf3 {[%clk 0:01:52.1]} 15... Bb7 {[%clk 0:02:25.3]}
16. h3 {[%clk 0:01:46.6]} 16... e5 {[%clk 0:02:18.4]} 17. Bg5 {[%clk 0:01:31.8]}
17... Ne4 {[%clk 0:02:18]} 18. Bh4 {[%clk 0:01:29.9]} 18... h6 {[%clk
0:02:15.7]} 19. Nd2 {[%clk 0:01:26.9]} 19... Nc5 {[%clk 0:01:49.4]} 20. Bg3
{[%clk 0:01:21.3]} 20... Nxb3 {[%clk 0:01:43.4]} 21. Nxb3 {[%clk 0:01:22.2]}
21... f5 {[%clk 0:01:39.5]} 22. Na5 {[%clk 0:01:17.5]} 22... Bd5 {[%clk
0:01:38]} 23. f3 {[%clk 0:01:14.3]} 23... e4 {[%clk 0:01:32.1]} 24. Bxd6 {[%clk
0:01:13.3]} 24... Qxd6 {[%clk 0:01:32.2]} 25. fxe4 {[%clk 0:00:41.1]} 25... Bxe4
{[%clk 0:01:24]} 26. Qc4+ {[%clk 0:00:28.3]} 26... Kh8 {[%clk 0:01:19.8]} 27.
Nc6 {[%clk 0:00:28.9]} 27... d3 {[%clk 0:01:13.1]} 28. cxd3 {[%clk 0:00:26.9]}
28... Bxd3 {[%clk 0:01:08.9]} 29. Rfd1 {[%clk 0:00:27]} 29... Bxc4 {[%clk
0:01:07]} 30. Rxd6 {[%clk 0:00:27.1]} 30... Bxb5 {[%clk 0:01:07.3]} 31. Ra5
{[%clk 0:00:18.9]} 31... a6 {[%clk 0:01:04.1]} 32. Nd4 {[%clk 0:00:18.3]} 32...
Bd3 {[%clk 0:00:51.2]} 33. Ne6 {[%clk 0:00:18.6]} 33... Rf6 {[%clk 0:00:51.5]}
34. Rxd3 {[%clk 0:00:15.2]} 34... Rxe6 {[%clk 0:00:51.8]} 35. Rxf5 {[%clk
0:00:15.9]} 35... Rb6 {[%clk 0:00:52]} 36. b3 {[%clk 0:00:15.2]} 36... Ra7
{[%clk 0:00:47.8]} 37. Ra5 {[%clk 0:00:15.6]} 37... Rc7 {[%clk 0:00:45.3]} 38.
Kh2 {[%clk 0:00:15.8]} 38... Kh7 {[%clk 0:00:45]} 39. Rg3 {[%clk 0:00:16.2]}
39... Rc2 {[%clk 0:00:44.1]} 40. Ra3 {[%clk 0:00:16.1]} 40... Rb2 {[%clk
0:00:43.5]} 41. Ra4 {[%clk 0:00:15.5]} 41... h5 {[%clk 0:00:41]} 42. h4 {[%clk
0:00:15.1]} 42... Kh6 {[%clk 0:00:40.7]} 43. Ra5 {[%clk 0:00:15.6]} 43... g6
{[%clk 0:00:41.2]} 44. Ra4 {[%clk 0:00:15.8]} 44... Kg7 {[%clk 0:00:37.2]} 45.
Rf3 {[%clk 0:00:16.3]} 45... Rd6 {[%clk 0:00:34.8]} 46. Kh3 {[%clk 0:00:16.9]}
46... Rb6 {[%clk 0:00:32.8]} 47. Kh2 {[%clk 0:00:16.8]} 47... Rd2 {[%clk
0:00:29.3]} 48. Kh3 {[%clk 0:00:17.3]} 48... Rd5 {[%clk 0:00:28.7]} 49. Kh2
{[%clk 0:00:17.5]} 49... Rdb5 {[%clk 0:00:28.2]} 50. Ra3 {[%clk 0:00:16.1]}
50... a5 {[%clk 0:00:28.7]} 51. Ra4 {[%clk 0:00:16.6]} 51... Rb4 {[%clk
0:00:26.5]} 52. Rxa5 {[%clk 0:00:14.6]} 52... Rxh4+ {[%clk 0:00:26.5]} 53. Kg1
{[%clk 0:00:15.2]} 53... Rhb4 {[%clk 0:00:26.8]} 54. Ra3 {[%clk 0:00:15.9]}
54... Kh6 {[%clk 0:00:26.7]} 55. Rd3 {[%clk 0:00:16.1]} 55... R4b5 {[%clk
0:00:24.4]} 56. Kf2 {[%clk 0:00:16.5]} 56... h4 {[%clk 0:00:24.8]} 57. Ke2
{[%clk 0:00:16.8]} 57... Kh5 {[%clk 0:00:24.8]} 58. Kd2 {[%clk 0:00:17.3]} 58...
g5 {[%clk 0:00:24.7]} 59. Kc3 {[%clk 0:00:17.8]} 59... Rc6+ {[%clk 0:00:24.4]}
60. Kd4 {[%clk 0:00:17.4]} 60... Rb4+ {[%clk 0:00:23.9]} 61. Ke3 {[%clk
0:00:17.5]} 61... Rcb6 {[%clk 0:00:22.5]} 62. Kd2 {[%clk 0:00:17.8]} 62... R4b5
{[%clk 0:00:21.1]} 63. Kc2 {[%clk 0:00:17.7]} 63... g4 {[%clk 0:00:21.4]} 64.
Ra4 {[%clk 0:00:17.7]} 64... Rg5 {[%clk 0:00:20]} 65. Ra8 {[%clk 0:00:16]} 65...
h3 {[%clk 0:00:19.2]} 66. Rh8+ {[%clk 0:00:14.7]} 66... Rh6 {[%clk 0:00:19.1]}
67. Rxh6+ {[%clk 0:00:14.7]} 67... Kxh6 {[%clk 0:00:20]} 68. gxh3 {[%clk
0:00:15.5]} 68... g3 {[%clk 0:00:20.4]} 69. Rd1 {[%clk 0:00:16.2]} 69... g2
{[%clk 0:00:20.6]} 70. Rg1 {[%clk 0:00:16.8]} 70... Rg3 {[%clk 0:00:20.6]} 71.
Kd2 {[%clk 0:00:14.4]} 71... Kh5 {[%clk 0:00:21.2]} 72. Ke2 {[%clk 0:00:14.3]}
72... Kh4 {[%clk 0:00:21.8]} 73. Kf2 {[%clk 0:00:11.2]} 73... Kxh3 {[%clk
0:00:22.3]} 74. b4 {[%clk 0:00:11.3]} 74... Rb3 {[%clk 0:00:16.4]} 75. Re1
{[%clk 0:00:09.8]} 75... Kh2 {[%clk 0:00:14.4]} 76. b5 {[%clk 0:00:05.9]} 76...
Rxb5 {[%clk 0:00:13.9]} 77. Kf3 {[%clk 0:00:04.9]} 77... Rf5+ {[%clk 0:00:13.1]}
78. Kg4 {[%clk 0:00:04.7]} 78... Rf1 {[%clk 0:00:13]} 0-1

[Event "*** Titled Tuesday Blitz"]
[Site "Chess.com"]
[Date "2021.03.30"]
[Round "4"]
[White "dennisodessa"]
[Black "Trankuilizer"]
[Result "0-1"]
[WhiteElo "2337"]
[BlackElo "2589"]
[TimeControl "180+1"]
[EndTime "10:41:09 PDT"]
[Termination "Trankuilizer won by checkmate"]

1. c4 {[%clk 0:02:59]} 1... Nf6 {[%clk 0:02:59.7]} 2. d4 {[%clk 0:02:56.8]} 2...
c5 {[%clk 0:02:59.3]} 3. d5 {[%clk 0:02:57.1]} 3... b5 {[%clk 0:02:59.5]} 4.
cxb5 {[%clk 0:02:58]} 4... a6 {[%clk 0:02:59.9]} 5. bxa6 {[%clk 0:02:58.9]} 5...
Bxa6 {[%clk 0:03:00.8]} 6. Nc3 {[%clk 0:02:59.4]} 6... g6 {[%clk 0:03:01]} 7.
Nf3 {[%clk 0:02:58.7]} 7... d6 {[%clk 0:03:00.3]} 8. e4 {[%clk 0:02:59]} 8...
Bxf1 {[%clk 0:02:59.6]} 9. Kxf1 {[%clk 0:02:59.9]} 9... Bg7 {[%clk 0:03:00.1]}
10. g3 {[%clk 0:03:00.6]} 10... Nbd7 {[%clk 0:03:00.3]} 11. Kg2 {[%clk
0:03:01.1]} 11... Qa5 {[%clk 0:03:00.9]} 12. a4 {[%clk 0:02:44.7]} 12... Rb8
{[%clk 0:03:00.4]} 13. Qc2 {[%clk 0:02:38.3]} 13... O-O {[%clk 0:02:57.1]} 14.
Ra2 {[%clk 0:02:11.8]} 14... Qb4 {[%clk 0:02:52.9]} 15. Bd2 {[%clk 0:02:10.5]}
15... Rfc8 {[%clk 0:02:33.1]} 16. Re1 {[%clk 0:02:09.2]} 16... Qb3 {[%clk
0:02:31.1]} 17. Qxb3 {[%clk 0:02:07.3]} 17... Rxb3 {[%clk 0:02:32]} 18. a5
{[%clk 0:01:46.6]} 18... Ne8 {[%clk 0:02:25.4]} 19. Bg5 {[%clk 0:01:21.6]} 19...
Kf8 {[%clk 0:02:23.3]} 20. a6 {[%clk 0:01:05.6]} 20... Nc7 {[%clk 0:02:21.6]}
21. a7 {[%clk 0:01:05.1]} 21... Ra8 {[%clk 0:02:21.5]} 22. Nd2 {[%clk
0:00:59.6]} 22... Rb7 {[%clk 0:01:51.7]} 23. Rea1 {[%clk 0:00:59]} 23... Nb6
{[%clk 0:01:26.3]} 24. Ra5 {[%clk 0:00:17.7]} 24... Nc8 {[%clk 0:01:25.5]} 25.
Nc4 {[%clk 0:00:18.1]} 25... Rbxa7 {[%clk 0:01:22.4]} 26. Bd2 {[%clk 0:00:18.5]}
26... Rxa5 {[%clk 0:01:21.2]} 27. Rxa5 {[%clk 0:00:19.4]} 27... Rxa5 {[%clk
0:01:20.2]} 28. Nxa5 {[%clk 0:00:19.7]} 28... Nb6 {[%clk 0:01:20.7]} 29. b3
{[%clk 0:00:19.7]} 29... f5 {[%clk 0:01:03.2]} 30. f3 {[%clk 0:00:18.8]} 30...
Kf7 {[%clk 0:00:52.7]} 31. Nc4 {[%clk 0:00:19]} 31... Nd7 {[%clk 0:00:50.9]} 32.
Kf2 {[%clk 0:00:19]} 32... Bd4+ {[%clk 0:00:49.1]} 33. Ke2 {[%clk 0:00:18]}
33... Nf6 {[%clk 0:00:48.9]} 34. Kd3 {[%clk 0:00:18.2]} 34... Na6 {[%clk
0:00:48.6]} 35. Ne2 {[%clk 0:00:16.8]} 35... Ba1 {[%clk 0:00:48.6]} 36. Ba5
{[%clk 0:00:16.3]} 36... fxe4+ {[%clk 0:00:46.7]} 37. fxe4 {[%clk 0:00:17.2]}
37... Ng4 {[%clk 0:00:47.2]} 38. h4 {[%clk 0:00:16.7]} 38... Nb8 {[%clk
0:00:42.4]} 39. Bd2 {[%clk 0:00:15.8]} 39... Nd7 {[%clk 0:00:42.4]} 40. Bf4
{[%clk 0:00:15.5]} 40... Ndf6 {[%clk 0:00:38.1]} 41. Bg5 {[%clk 0:00:15.1]}
41... Nh5 {[%clk 0:00:35.4]} 42. Bf4 {[%clk 0:00:14.6]} 42... Nxf4+ {[%clk
0:00:31.3]} 43. Nxf4 {[%clk 0:00:12.8]} 43... Bd4 {[%clk 0:00:27.8]} 44. Nd2
{[%clk 0:00:11.6]} 44... Bf2 {[%clk 0:00:25.4]} 45. Ne2 {[%clk 0:00:11.8]} 45...
Ne5+ {[%clk 0:00:23.6]} 46. Kc2 {[%clk 0:00:12.2]} 46... Be1 {[%clk 0:00:22.4]}
47. Nf1 {[%clk 0:00:12.3]} 47... h6 {[%clk 0:00:18.5]} 48. Kd1 {[%clk
0:00:12.8]} 48... Bb4 {[%clk 0:00:17.7]} 49. Kc2 {[%clk 0:00:13.7]} 49... g5
{[%clk 0:00:17.9]} 50. hxg5 {[%clk 0:00:13.8]} 50... hxg5 {[%clk 0:00:18.8]} 51.
Ne3 {[%clk 0:00:14.7]} 51... Nf3 {[%clk 0:00:18.7]} 52. Nf5 {[%clk 0:00:14.8]}
52... Kf6 {[%clk 0:00:18.5]} 53. Kd3 {[%clk 0:00:15.4]} 53... Ne5+ {[%clk
0:00:18.2]} 54. Ke3 {[%clk 0:00:14.9]} 54... Ng4+ {[%clk 0:00:19.1]} 55. Kd3
{[%clk 0:00:15.4]} 55... Be1 {[%clk 0:00:17]} 56. Ne3 {[%clk 0:00:15.3]} 56...
Ne5+ {[%clk 0:00:14.2]} 57. Kc2 {[%clk 0:00:15.3]} 57... Bf2 {[%clk 0:00:14.3]}
58. Nf5 {[%clk 0:00:15.5]} 58... Ng4 {[%clk 0:00:09]} 59. Kd3 {[%clk 0:00:16]}
59... Ne5+ {[%clk 0:00:08.7]} 60. Kc2 {[%clk 0:00:16.3]} 60... g4 {[%clk
0:00:09.1]} 61. Kd2 {[%clk 0:00:14.3]} 61... Nf3+ {[%clk 0:00:08.8]} 62. Kd3
{[%clk 0:00:14.4]} 62... Be1 {[%clk 0:00:08.8]} 63. Nf4 {[%clk 0:00:13.5]} 63...
Ba5 {[%clk 0:00:08.3]} 64. Nh5+ {[%clk 0:00:13.3]} 64... Kg5 {[%clk 0:00:07.2]}
65. Nxe7 {[%clk 0:00:13.4]} 65... Kxh5 {[%clk 0:00:07.1]} 66. Nc6 {[%clk
0:00:13.7]} 66... Bc7 {[%clk 0:00:06.9]} 67. Ne7 {[%clk 0:00:13.7]} 67... Kg5
{[%clk 0:00:06.4]} 68. Ke2 {[%clk 0:00:14.6]} 68... Kf6 {[%clk 0:00:06.4]} 69.
Nc6 {[%clk 0:00:15.1]} 69... Nd4+ {[%clk 0:00:05.4]} 70. Kd3 {[%clk 0:00:15.3]}
70... Nxc6 {[%clk 0:00:03.8]} 71. Kc4 {[%clk 0:00:16.2]} 71... Ke5 {[%clk
0:00:04.7]} 72. dxc6 {[%clk 0:00:17]} 72... Kxe4 {[%clk 0:00:04.7]} 73. Kb5
{[%clk 0:00:17.9]} 73... d5 {[%clk 0:00:05.1]} 74. Ka6 {[%clk 0:00:18.8]} 74...
Ke5 {[%clk 0:00:06]} 75. Kb7 {[%clk 0:00:19.7]} 75... Kd6 {[%clk 0:00:06.9]} 76.
b4 {[%clk 0:00:18.7]} 76... d4 {[%clk 0:00:07.8]} 77. Kc8 {[%clk 0:00:19.6]}
77... cxb4 {[%clk 0:00:07.6]} 78. Kb7 {[%clk 0:00:20.3]} 78... d3 {[%clk
0:00:07.9]} 79. Kc8 {[%clk 0:00:21.2]} 79... d2 {[%clk 0:00:08.8]} 80. Kb7
{[%clk 0:00:22]} 80... d1=Q {[%clk 0:00:09.7]} 81. Kc8 {[%clk 0:00:22.9]} 81...
Qd5 {[%clk 0:00:09.8]} 82. Kb7 {[%clk 0:00:23.4]} 82... Qxc6+ {[%clk 0:00:10.1]}
83. Kc8 {[%clk 0:00:24.3]} 83... Qa8# {[%clk 0:00:10.2]} 0-1

[Event "*** Titled Tuesday Blitz"]
[Site "Chess.com"]
[Date "2021.03.30"]
[Round "4"]
[White "BrandonJacobson"]
[Black "Funo09"]
[Result "1/2-1/2"]
[WhiteElo "2971"]
[BlackElo "2762"]
[TimeControl "180+1"]
[EndTime "10:41:10 PDT"]
[Termination "Game drawn - insufficient material"]

1. d4 {[%clk 0:03:00.9]} 1... Nf6 {[%clk 0:02:59.8]} 2. c4 {[%clk 0:03:01.5]}
2... Nc6 {[%clk 0:03:00.4]} 3. Nf3 {[%clk 0:03:00.7]} 3... d6 {[%clk 0:03:00.7]}
4. Nc3 {[%clk 0:02:59.1]} 4... Bg4 {[%clk 0:03:01.3]} 5. d5 {[%clk 0:02:53.7]}
5... Bxf3 {[%clk 0:03:01.2]} 6. exf3 {[%clk 0:02:53.5]} 6... Nb8 {[%clk
0:03:01.9]} 7. f4 {[%clk 0:02:45.8]} 7... g6 {[%clk 0:03:01.9]} 8. Bd3 {[%clk
0:02:46.5]} 8... c6 {[%clk 0:03:01.8]} 9. O-O {[%clk 0:02:46.7]} 9... Bg7 {[%clk
0:03:01.1]} 10. Re1 {[%clk 0:02:47.3]} 10... O-O {[%clk 0:03:00.9]} 11. Qe2
{[%clk 0:02:36.6]} 11... Re8 {[%clk 0:02:59.5]} 12. f5 {[%clk 0:02:36.3]} 12...
Nbd7 {[%clk 0:02:55.7]} 13. f4 {[%clk 0:02:31.9]} 13... Nc5 {[%clk 0:02:52.5]}
14. Bc2 {[%clk 0:02:27.7]} 14... cxd5 {[%clk 0:02:49.4]} 15. cxd5 {[%clk
0:02:28.6]} 15... Rc8 {[%clk 0:02:46.8]} 16. fxg6 {[%clk 0:02:25.9]} 16... hxg6
{[%clk 0:02:46.8]} 17. f5 {[%clk 0:02:26.5]} 17... gxf5 {[%clk 0:02:33.4]} 18.
Bxf5 {[%clk 0:02:27.4]} 18... e6 {[%clk 0:02:33.7]} 19. dxe6 {[%clk 0:02:24.3]}
19... Nxe6 {[%clk 0:02:29.2]} 20. Qf2 {[%clk 0:02:00.5]} 20... d5 {[%clk
0:02:20]} 21. Rd1 {[%clk 0:01:33.1]} 21... Qa5 {[%clk 0:01:35.8]} 22. Bd2 {[%clk
0:01:27.9]} 22... d4 {[%clk 0:01:13.3]} 23. Ne2 {[%clk 0:01:13.8]} 23... Qe5
{[%clk 0:01:02.3]} 24. Ng3 {[%clk 0:01:12.3]} 24... Nd5 {[%clk 0:00:56.8]} 25.
Bxe6 {[%clk 0:00:48.6]} 25... Rxe6 {[%clk 0:00:56.2]} 26. Nf5 {[%clk 0:00:33.7]}
26... Rc2 {[%clk 0:00:52.2]} 27. Nxg7 {[%clk 0:00:29.1]} 27... Qxg7 {[%clk
0:00:50.1]} 28. Rac1 {[%clk 0:00:23.2]} 28... d3 {[%clk 0:00:34.4]} 29. Rxc2
{[%clk 0:00:17.9]} 29... dxc2 {[%clk 0:00:35.3]} 30. Rc1 {[%clk 0:00:18.6]}
30... Qxb2 {[%clk 0:00:36]} 31. Qc5 {[%clk 0:00:17.1]} 31... Qxa2 {[%clk
0:00:25.8]} 32. Rxc2 {[%clk 0:00:15.4]} 32... Qb1+ {[%clk 0:00:25.5]} 33. Rc1
{[%clk 0:00:16]} 33... Qd3 {[%clk 0:00:25.6]} 34. Qc8+ {[%clk 0:00:11.3]} 34...
Kh7 {[%clk 0:00:23.7]} 35. Qd7 {[%clk 0:00:09.7]} 35... Rf6 {[%clk 0:00:16.9]}
36. Bg5 {[%clk 0:00:09.6]} 36... Rf5 {[%clk 0:00:15.7]} 37. h3 {[%clk
0:00:08.3]} 37... Qd4+ {[%clk 0:00:12.2]} 38. Kh1 {[%clk 0:00:08.1]} 38... Rxg5
{[%clk 0:00:12.3]} 39. Qxf7+ {[%clk 0:00:08.5]} 39... Qg7 {[%clk 0:00:12.8]} 40.
Qe8 {[%clk 0:00:06.1]} 40... Nf6 {[%clk 0:00:10.1]} 41. Qd8 {[%clk 0:00:06]}
41... Rd5 {[%clk 0:00:05.8]} 42. Qc8 {[%clk 0:00:03.6]} 42... Rd7 {[%clk
0:00:04.2]} 43. Qc2+ {[%clk 0:00:03.9]} 43... Qg6 {[%clk 0:00:04.3]} 44. Qa4
{[%clk 0:00:04.6]} 44... Qg5 {[%clk 0:00:04.3]} 45. Rf1 {[%clk 0:00:04.7]} 45...
Rf7 {[%clk 0:00:04.3]} 46. Qxa7 {[%clk 0:00:04.8]} 46... Kg7 {[%clk 0:00:04.3]}
47. Qd4 {[%clk 0:00:05.2]} 47... Qg6 {[%clk 0:00:04.4]} 48. Qb4 {[%clk
0:00:04.7]} 48... Qe4 {[%clk 0:00:04]} 49. Qb2 {[%clk 0:00:04.8]} 49... Qd5
{[%clk 0:00:03.6]} 50. Kh2 {[%clk 0:00:04.8]} 50... Qg5 {[%clk 0:00:03.8]} 51.
Kh1 {[%clk 0:00:05.2]} 51... Kg6 {[%clk 0:00:04.2]} 52. Rf3 {[%clk 0:00:05.8]}
52... Kh7 {[%clk 0:00:04.4]} 53. Qf2 {[%clk 0:00:05.3]} 53... Qg6 {[%clk
0:00:04.6]} 54. Qe2 {[%clk 0:00:04.3]} 54... Qb1+ {[%clk 0:00:04.6]} 55. Kh2
{[%clk 0:00:04.9]} 55... Qg6 {[%clk 0:00:05.5]} 56. Qf2 {[%clk 0:00:05]} 56...
Qh6 {[%clk 0:00:05]} 57. Qc2+ {[%clk 0:00:04.8]} 57... Kg7 {[%clk 0:00:05]} 58.
Rg3+ {[%clk 0:00:05.2]} 58... Kh8 {[%clk 0:00:05.2]} 59. Qc8+ {[%clk 0:00:05.5]}
59... Rf8 {[%clk 0:00:05.6]} 60. Qxb7 {[%clk 0:00:06]} 60... Nh5 {[%clk
0:00:05.2]} 61. Qb2+ {[%clk 0:00:05.4]} 61... Rf6 {[%clk 0:00:04.6]} 62. Qb8+
{[%clk 0:00:05.4]} 62... Rf8 {[%clk 0:00:04.8]} 63. Qb2+ {[%clk 0:00:06.1]}
63... Qf6 {[%clk 0:00:04.3]} 64. Qxf6+ {[%clk 0:00:04.2]} 64... Rxf6 {[%clk
0:00:05.2]} 65. Rg5 {[%clk 0:00:04.4]} 65... Ng7 {[%clk 0:00:05.2]} 66. Ra5
{[%clk 0:00:05.1]} 66... Kh7 {[%clk 0:00:05.6]} 67. g4 {[%clk 0:00:05.7]} 67...
Kg6 {[%clk 0:00:06.2]} 68. Kg3 {[%clk 0:00:06.3]} 68... Rc6 {[%clk 0:00:06.6]}
69. h4 {[%clk 0:00:06.3]} 69... Rc3+ {[%clk 0:00:07.1]} 70. Kf4 {[%clk 0:00:07]}
70... Ne6+ {[%clk 0:00:07]} 71. Ke5 {[%clk 0:00:07.3]} 71... Ng7 {[%clk
0:00:07.4]} 72. Kf4 {[%clk 0:00:07.5]} 72... Rc4+ {[%clk 0:00:07.4]} 73. Kg3
{[%clk 0:00:07.7]} 73... Ne6 {[%clk 0:00:07.8]} 74. Ra6 {[%clk 0:00:06.2]} 74...
Kf6 {[%clk 0:00:08.3]} 75. h5 {[%clk 0:00:04.8]} 75... Re4 {[%clk 0:00:05.3]}
76. Kh4 {[%clk 0:00:04.9]} 76... Re1 {[%clk 0:00:04.2]} 77. g5+ {[%clk
0:00:04.5]} 77... Kf5 {[%clk 0:00:04.5]} 78. Ra5+ {[%clk 0:00:04.8]} 78... Re5
{[%clk 0:00:04.3]} 79. Rxe5+ {[%clk 0:00:04.7]} 79... Kxe5 {[%clk 0:00:05.2]}
80. h6 {[%clk 0:00:04.2]} 80... Kf5 {[%clk 0:00:02.6]} 81. h7 {[%clk 0:00:03.4]}
81... Nf8 {[%clk 0:00:02.9]} 82. h8=Q {[%clk 0:00:02.4]} 82... Ng6+ {[%clk
0:00:03.1]} 83. Kg3 {[%clk 0:00:03.3]} 83... Nxh8 {[%clk 0:00:04]} 84. g6 {[%clk
0:00:04.2]} 84... Nxg6 {[%clk 0:00:04.9]} 1/2-1/2